[Event "21st Maccabiah GM 2022"]
[Site "?"]
[Date "2022.07.21"]
[Round "8.5"]
[White "Tzidkiya, Yeshaayahu"]
[Black "Smirin, Ilia"]
[Result "1-0"]
[ECO "B43"]
[WhiteElo "2419"]
[BlackElo "2601"]
[Annotator "ChessBase"]
[PlyCount "65"]
[EventDate "2022.07.13"]
[EventType "tourn"]
[EventCountry "ISR"]
[SourceTitle "playchess.com"]
[Source "ChessBase"]
[SourceQuality "1"]
[TimeControl "40/5400+30:1800+30"]

1. e4 {[%emt 0:00:10]} c5 {[%emt 0:02:58]} 2. Nf3 {[%emt 0:00:30]} e6 3. d4 {[%emt 0:00:30]} cxd4 {[%emt 0:01:00]} 4. Nxd4 {[%emt 0:00:30]} a6 {[%emt 0:00:30]} 5. Nc3 {[%emt 0:00:30]} b5 {[%emt 0:00:30]} 6. g3 {[%emt 0:00:30]} Bb7 {[%emt 0:00:30]} 7. Bg2 {[%emt 0:00:30]} Nf6 {[%emt 0:00:30]} 8. O-O {[%emt 0:00:30]} b4 {[%emt 0:00:30]} 9. Na4 {[%emt 0:00:30]} Bxe4 {[%emt 0:00:30]} 10. Bxe4 {[%emt 0:00:30]} Nxe4 {[%emt 0:00:30]} 11. c4 {[%emt 0:00:30]} Nc5 {[%emt 0:00:30]} 12. Be3 {[%emt 0:00:30]} Nxa4 {[%emt 0:00:30]} 13. Qxa4 {[%emt 0:00:30]} Be7 {[%emt 0:00:30]} 14. c5 {[%emt 0:00:30]} a5 {[%emt 0:00:30]} 15. Rac1 {[%emt 0:00:30]} O-O {[%emt 0:00:30]} 16. Rfd1 {[%emt 0:00:30]} Qc8 {[%emt 0:00:30]} 17. Bf4 {[%emt 0:00:30]} Bf6 {[%emt 0:00:30]} 18. Bd6 {[%emt 0:00:30]} Rd8 {[%emt 0:00:30]} 19. Nb5 {[%emt 0:00:30]} Bxb2 {[%emt 0:00:30]} 20. Rc2 {[%emt 0:00:30]} Bf6 {[%emt 0:00:30]} 21. Bc7 {[%emt 0:00:30]} Rf8 {[%emt 0:00:30]} 22. Bd6 {[%emt 0:00:30]} Re8 {[%emt 0:00:30]} 23. Bxb8 {[%emt 0:00:30]} Rxb8 {[%emt 0:00:30]} 24. Nd6 {[%emt 0:00:30]} Qc6 {[%emt 0:00:30]} 25. Qxc6 {[%emt 0:00:30]} dxc6 {[%emt 0:00:30]} 26. Nxe8 {[%emt 0:00:30]} Rxe8 {[%emt 0:00:30]} 27. Rd7 {[%emt 0:00:30]} Ra8 {[%emt 0:00:30]} 28. Rc7 {[%emt 0:00:30]} a4 {[%emt 0:00:30]} 29. Rc4 {[%emt 0:00:30]} Bd8 {[%emt 0:00:30]} 30. Rxc6 {[%emt 0:00:30]} Ba5 {[%emt 0:00:30]} 31. Rd6 {[%emt 0:00:30]} b3 {[%emt 0:00:30]} 32. Rxa4 {[%emt 0:00:30]} b2 {[%emt 0:00:30]} 33. Rb6 {[%emt 0:00:30]} 1-0

[Event "21st Maccabiah GM 2022"]
[Site "?"]
[Date "2022.07.22"]
[Round "9.1"]
[White "Smirin, Ilia"]
[Black "Dvoirys, Semen I."]
[Result "1/2-1/2"]
[ECO "B46"]
[WhiteElo "2601"]
[BlackElo "2439"]
[Annotator "TA"]
[PlyCount "42"]
[EventDate "2022.07.13"]
[EventType "tourn"]
[EventCountry "ISR"]
[SourceTitle "playchess.com"]
[Source "ChessBase"]
[SourceQuality "1"]
[TimeControl "40/5400+30:1800+30"]

{[%evp 21,42,0,0,0,0,-12,0,0,0,-21,0,-13,0,0,0,0,0,0,0,0,0,0,127]} 1. e4 {[%emt 0:02:20]} c5 {[%emt 0:00:08]} 2. Nc3 {[%emt 0:00:08]} Nc6 {[%emt 0:00:35]} 3. Nf3 {[%emt 0:00:11]} e6 {[%emt 0:01:49]} 4. d4 {[%emt 0:00:36]} cxd4 {[%emt 0:00:06]} 5. Nxd4 {[%emt 0:00:03]} a6 {[%emt 0:00:08]} 6. f4 {[%emt 0:01:09]} Qc7 {[%emt 0:01:03]} 7. Nxc6 {[%emt 0:00:32]} bxc6 {[%emt 0:01:59]} 8. e5 {[%emt 0:04:26]} d6 {[%emt 0:03:47]} 9. exd6 {[%emt 0:07:48]} Bxd6 {[%emt 0:00:51]} 10. Ne4 {[%emt 0:00:07]} Be7 {[%emt 0:03:10]} 11. Bd3 {[%emt 0:01:45]} Nf6 {[%emt 0:00:14] The position is equal.} 12. O-O {[%emt 0:02:02] B46: Sicilian: Taimanov: 5 Nc3 a6.} O-O {[%emt 0:00:25]} 13. Ng5 {[%emt 0:02:59]} c5 {[%emt 0:02:37]} 14. Qe2 {[%emt 0:03:05]} Bb7 {[%emt 0:00:45]} 15. c4 {[%emt 0:04:30]} Bd6 {[%emt 0:04:24] [#]} 16. b3 $146 {[%emt 0:11:12]} ({Predecessor:} 16. Bd2 h6 17. Ne4 Nxe4 18. Bxe4 Bxe4 19. Qxe4 Rae8 20. Bc3 f5 21. Qf3 Be7 22. Rfe1 {½-½ (37) Kruszynski,W (2360)-Doda,Z (2350) Porabka 1986}) 16... Rae8 {[%emt 0:14:15]} 17. Ne4 {[%emt 0:26:18]} Nxe4 {[%emt 0:05:29]} 18. Bxe4 {[%emt 0:00:15]} Bxe4 {[%emt 0:00:05]} 19. Qxe4 {[%emt 0:00:03]} f5 {[%emt 0:00:06]} 20. Qf3 {[%emt 0:01:31]} e5 {[%emt 0:00:11]} 21. Be3 {[%emt 0:00:51]} Qd8 {[%emt 0:58:53] Weighted Error Value: White=0.05 (flawless) /Black=0.05 (flawless)} (21... exf4 $11 {keeps the balance.} 22. Bxf4 Bxf4 23. Qxf4 Qxf4 24. Rxf4 Re2) 1/2-1/2

[Event "21st Maccabiah GM 2022"]
[Site "?"]
[Date "2022.07.22"]
[Round "9.2"]
[White "Kobo, Ori"]
[Black "Tzidkiya, Yeshaayahu"]
[Result "1/2-1/2"]
[ECO "E16"]
[WhiteElo "2534"]
[BlackElo "2419"]
[Annotator "TA"]
[PlyCount "112"]
[EventDate "2022.07.13"]
[EventType "tourn"]
[EventCountry "ISR"]
[SourceTitle "playchess.com"]
[Source "ChessBase"]
[SourceQuality "1"]
[TimeControl "40/5400+30:1800+30"]

{[%evp 17,112,25,22,0,0,0,16,22,22,22,22,26,30,22,26,18,23,24,33,33,31,34,39,36,45,37,57,55,62,69,60,64,65,65,62,64,99,102,160,165,159,149,149,110,121,118,111,101,143,104,117,89,91,61,108,108,130,126,131,131,145,139,147,127,150,73,205,218,195,200,182,37,39,46,46,47,39,39,39,39,43,27,27,27,39,39,40,39,39,12,12,12,12,12,22,12,45]} 1. d4 {[%emt 0:00:13]} Nf6 {[%emt 0:00:03]} 2. c4 {[%emt 0:00:24]} e6 {[%emt 0:00:09]} 3. Nf3 {[%emt 0:00:54]} Bb4+ {[%emt 0:01:35]} 4. Bd2 {[%emt 0:01:07]} a5 {[%emt 0:02:40]} 5. g3 {[%emt 0:00:29]} O-O {[%emt 0:00:06]} 6. Bg2 {[%emt 0:00:59]} b6 {[%emt 0:00:03]} 7. O-O {[%emt 0:01:33]} Bb7 {[%emt 0:00:07]} 8. Bf4 {[%emt 0:00:51]} Be7 {[%emt 0:00:04]} 9. Nc3 {[%emt 0:00:42][%cal Bb1c3,Bc3b5,Bb5c7][%mdl 32]} Ne4 {[%emt 0:00:12]} 10. Nb5 $1 {[%emt 0:00:11][%mdl 4] outshines the older 10.Qc2. E16: Queen's Indian: 4 g3 Bb7 5 Bg2 Bb4+.} c6 {[%emt 0:00:24]} 11. Nc7 {[%emt 0:00:11]} Ra7 {[%emt 0:04:38]} 12. Qb3 $1 {[%emt 0:00:22]} d6 {[%emt 0:00:52] [#]} 13. c5 $1 {[%emt 0:00:11]} Qxc7 {[%emt 0:00:38]} 14. cxb6 {[%emt 0:00:21]} a4 {[%emt 0:00:02]} 15. bxc7 {[%emt 0:00:47]} axb3 {[%emt 0:00:03]} 16. cxb8=Q {[%emt 0:00:12]} Rxb8 {[%emt 0:00:04]} 17. axb3 {[%emt 0:00:12]} Rba8 {[%emt 0:00:03]} 18. Rxa7 {[%emt 0:00:25]} Rxa7 {[%emt 0:00:04]} 19. Rb1 {[%emt 0:03:15]} Ra2 {[%emt 0:09:49]} 20. Ne1 {[%emt 0:12:38]} d5 {[%emt 0:03:55]} 21. Nd3 {[%emt 0:15:19]} g5 {[%emt 0:00:42]} 22. Be3 {[%emt 0:01:00] [#]} Ba6 $146 {[%emt 0:08:04]} ({Predecessor:} 22... Nd6 23. Bd2 Nb5 24. Bb4 Bxb4 25. Nxb4 Ra5 26. e3 Nd6 27. Nd3 Ba6 28. Nc5 Bb5 {½-½ (53) Sargsyan,S (2580)-Shtembuliak,E (2577) New Delhi 2019}) 23. Nc1 $1 {[%emt 0:02:37]} Ra5 {[%emt 0:01:51]} 24. f3 $1 {[%emt 0:01:31]} Nd6 {[%emt 0:01:22]} 25. Bd2 {[%emt 0:00:20]} Rb5 {[%emt 0:00:07]} 26. Ra1 $36 {[%emt 0:05:45][%mdl 2048] Black is under pressure.} Bb7 {[%emt 0:09:01]} 27. Bf1 {[%emt 0:08:38] Strongly threatening e3.} Rb6 {[%emt 0:02:07]} (27... c5 $142) 28. e3 $16 {[%emt 0:02:06] Hoping for Ba5.} Nb5 {[%emt 0:00:06]} 29. Nd3 {[%emt 0:05:05]} f6 {[%emt 0:03:58]} 30. Rc1 {[%emt 0:07:16]} Kf7 {[%emt 0:02:07]} 31. Ba5 {[%emt 0:01:51]} Ra6 {[%emt 0:00:04]} 32. b4 {[%emt 0:08:26] White is more active.} Bc8 {[%emt 0:01:10]} 33. Nc5 {[%emt 0:04:24]} Bxc5 34. Rxc5 {[%emt 0:00:33]} Bd7 {[%emt 0:01:45]} 35. e4 {[%emt 0:04:22]} Ke7 {[%emt 0:02:02]} (35... Ra7 $14 {feels stronger.}) 36. Kf2 {[%emt 0:07:17]} Be8 {[%emt 0:24:58]} 37. Ke3 {[%emt 0:01:24]} h6 {[%emt 0:00:52]} 38. Bd3 {[%emt 0:01:28]} Bd7 {[%emt 0:01:12]} 39. Rc1 {[%emt 0:03:14]} Ra8 {[%emt 0:00:37]} 40. Rh1 {[%emt 0:01:14]} f5 {[%emt 0:08:27]} 41. h4 {[%emt 0:10:36]} ({White should try} 41. Bb6) 41... f4+ {[%emt 0:02:32]} (41... dxe4 $16 42. fxe4 gxh4) 42. gxf4 $18 {[%emt 0:00:10]} gxf4+ {[%emt 0:00:03]} 43. Kxf4 {[%emt 0:00:09] Rg1 is the strong threat.} Nxd4 {[%emt 0:00:03] [#]} 44. Bb6 {[%emt 0:16:04] A strong pair of Bishops.} ({Better is} 44. Ke3 $1 $18 {[%cal Re3d4]} Nb3 45. Bc7) 44... Rf8+ $1 $14 {[%emt 0:00:05]} 45. Ke3 {[%emt 0:00:19]} Rxf3+ {[%emt 0:00:32]} 46. Kxd4 {[%emt 0:00:05]} e5+ $1 {[%emt 0:00:02]} 47. Kxe5 {[%emt 0:00:25]} ({Much worse is} 47. Kc3 dxe4 48. Bc5+ Ke6 $17) 47... Rxd3 {[%emt 0:00:03][%mdl 4096] Endgame KRB-KRB} 48. Bc5+ {[%emt 0:00:57]} Kd8 {[%emt 0:04:02]} 49. Rf1 {[%emt 0:01:17]} dxe4 $1 {[%emt 0:00:58]} 50. Kxe4 {[%emt 0:00:16]} Rd5 {[%emt 0:01:50]} 51. Rf8+ {[%emt 0:00:48]} Kc7 {[%emt 0:01:45]} 52. Be3 {[%emt 0:00:28]} h5 {[%emt 0:00:04]} 53. Bf4+ {[%emt 0:00:22]} Kb6 {[%emt 0:00:10] The position is equal.} 54. Be5 {[%emt 0:01:24]} Bg4 {[%emt 0:01:56]} 55. Rb8+ {[%emt 0:00:45]} Ka7 {[%emt 0:00:14][%cal Od5e5] And now ...Rxe5+! would win.} 56. Rh8 {[%emt 0:00:25]} Rd7 {[%emt 0:00:46] Black escapes into a draw.  Weighted Error Value: White=0.12 (very precise) /Black=0.10 (very precise)} 1/2-1/2

[Event "21st Maccabiah GM 2022"]
[Site "?"]
[Date "2022.07.22"]
[Round "9.3"]
[White "Alekseev, Evgeny"]
[Black "Parkhov, Yair"]
[Result "1/2-1/2"]
[ECO "C42"]
[WhiteElo "2601"]
[BlackElo "2468"]
[Annotator "TA"]
[PlyCount "66"]
[EventDate "2022.07.13"]
[EventType "tourn"]
[EventCountry "ISR"]
[SourceTitle "playchess.com"]
[Source "ChessBase"]
[SourceQuality "1"]
[TimeControl "40/5400+30:1800+30"]

{[%evp 18,66,28,22,20,24,35,35,42,20,25,31,45,46,82,93,79,89,68,0,126,22,19,21,35,36,30,16,22,10,17,8,18,17,17,17,17,14,20,0,0,12,5,5,5,13,14,13,7,0,0]} 1. e4 {[%emt 0:01:36]} e5 {[%emt 0:00:08]} 2. Nf3 {[%emt 0:00:30]} Nf6 {[%emt 0:00:30]} 3. Nxe5 {[%emt 0:00:30]} d6 {[%emt 0:00:30]} 4. Nf3 {[%emt 0:00:30]} Nxe4 5. d4 {[%emt 0:00:30]} d5 {[%emt 0:01:00]} 6. Bd3 {[%emt 0:00:30]} Bd6 {[%emt 0:00:30]} 7. O-O {[%emt 0:00:30]} O-O {[%emt 0:00:30]} 8. c4 {[%emt 0:26:04]} c6 {[%emt 0:00:00]} 9. Re1 {[%emt 0:01:12]} Bf5 {[%emt 1:31:52]} 10. Qb3 {[%emt 0:10:50]} Qd7 {[%emt 0:00:00] C42: Petroff Defence: 3 Nxe5 and unusual White 3rd moves.} 11. Nc3 {[%emt 0:04:12]} dxc4 {[%emt 0:00:00]} 12. Bxc4 {[%emt 0:01:24]} Nxc3 {[%emt 0:00:00] White is slightly better.} 13. bxc3 {[%emt 0:02:55] Black must now prevent Ba3.} b5 {[%emt 0:00:00]} 14. Bf1 {[%emt 0:03:40] [#]} Be6 $146 {[%emt 0:00:00]} ({Predecessor:} 14... h6 15. Ba3 Be6 16. Rxe6 Bxa3 17. Ree1 Qd6 18. Ne5 g5 19. Rad1 Kg7 20. d5 Bc5 21. dxc6 Qf6 22. Qb2 Re8 23. Ng4 Rxe1 24. Nxf6 Rxd1 25. Nh5+ Kf8 26. Qxb5 {1-0 (26) Altieri,C (1867)-Pietro,R (1637) ICCF email 2014}) 15. Qc2 {[%emt 0:02:53]} h6 {[%emt 0:00:00]} 16. a4 {[%emt 0:03:48]} Bf5 {[%emt 0:00:00]} 17. Qb3 {[%emt 0:02:44][%cal Ra4b5]} Be6 {[%emt 0:00:00]} 18. Qc2 {[%emt 0:02:28]} (18. Qb1 $14) 18... Bf5 $1 $16 {[%emt 0:00:00] [#]} 19. Bd3 {[%emt 0:00:04]} ({White should try} 19. Qd1 $1 $16) 19... Bxd3 $11 {[%emt 0:00:00]} 20. Qxd3 {[%emt 0:00:03]} bxa4 {[%emt 0:00:00]} 21. Qc2 {[%emt 0:10:28]} Re8 {[%emt 0:00:00]} 22. Rxe8+ {[%emt 0:05:28]} (22. Rd1 {looks sharper.} Qe6 23. Bd2 Qb3 24. Qd3) 22... Qxe8 {[%emt 0:00:00] The position is equal.} 23. Qxa4 {[%emt 0:00:58]} Qc8 {[%emt 0:00:00]} 24. Be3 {[%emt 0:05:22]} Nd7 {[%emt 0:00:00]} 25. Qa6 {[%emt 0:01:46]} Qxa6 {[%emt 0:00:00]} 26. Rxa6 {[%emt 0:00:02]} Nb8 $1 {[%emt 0:00:00]} 27. Ra2 {[%emt 0:05:17]} a5 {[%emt 0:00:00]} 28. c4 {[%emt 0:02:08]} Nd7 {[%emt 0:00:00]} 29. Bd2 {[%emt 0:01:15]} a4 {[%emt 0:00:00]} 30. c5 {[%emt 0:00:14]} Bc7 {[%emt 0:00:00]} 31. Kf1 {[%emt 0:01:19]} Nf6 {[%emt 0:00:00]} 32. Ke2 {[%emt 0:00:17]} ({Reject} 32. Ne5 Bxe5 33. dxe5 Nd7 $17) 32... Nd5 {[%emt 0:00:00]} 33. g3 {[%emt 0:00:30]} f5 {[%emt 0:00:00] Weighted Error Value: White=0.12 (very precise) /Black=0.03 (flawless)} 1/2-1/2

[Event "21st Maccabiah GM 2022"]
[Site "?"]
[Date "2022.07.22"]
[Round "9.4"]
[White "Gruenfeld, Yehuda"]
[Black "Yarmonov, Igor"]
[Result "1-0"]
[ECO "B19"]
[WhiteElo "2426"]
[BlackElo "2372"]
[Annotator "TA"]
[PlyCount "83"]
[EventDate "2022.07.13"]
[EventType "tourn"]
[EventCountry "ISR"]
[SourceTitle "playchess.com"]
[Source "ChessBase"]
[SourceQuality "1"]
[TimeControl "40/5400+30:1800+30"]

{[%evp 31,83,24,85,56,72,79,82,74,73,77,77,74,77,58,43,44,63,60,112,72,72,0,99,101,96,104,97,97,101,104,110,22,25,20,29,30,127,56,118,123,110,123,114,113,143,162,148,91,88,93,373,362,358,334]} 1. e4 {[%emt 0:00:05]} c6 {[%emt 0:00:24]} 2. d4 {[%emt 0:00:06]} d5 {[%emt 0:00:17]} 3. Nc3 {[%emt 0:00:04]} dxe4 {[%emt 0:00:09]} 4. Nxe4 {[%emt 0:00:06]} Bf5 {[%emt 0:00:28]} 5. Ng3 {[%emt 0:00:05]} Bg6 {[%emt 0:00:18]} 6. h4 {[%emt 0:00:12]} h6 {[%emt 0:00:22]} 7. Nf3 {[%emt 0:00:09]} Nd7 {[%emt 0:00:08]} 8. h5 {[%emt 0:00:27]} Bh7 {[%emt 0:00:02]} 9. Bd3 {[%emt 0:00:10]} Bxd3 {[%emt 0:00:21]} 10. Qxd3 {[%emt 0:00:07]} e6 {[%emt 0:00:06]} 11. Bf4 {[%emt 0:00:39]} Qa5+ {[%emt 0:02:33]} 12. Bd2 {[%emt 0:00:09]} Qc7 {[%emt 0:00:36]} 13. O-O-O {[%emt 0:00:14]} Ngf6 {[%emt 0:00:55]} 14. Qe2 {[%emt 0:00:17]} O-O-O {[%emt 0:10:02]} 15. Ne5 {[%emt 0:00:16]} Nb6 {[%emt 0:02:21]} 16. Ba5 {[%emt 0:00:15]} Bd6 {[%emt 0:01:11]} (16... c5 $11) 17. Kb1 {[%emt 0:07:51] B19: Classical Caro-Kann: 4...Bf5 main line.} c5 {[%emt 0:00:51]} 18. c4 $1 {[%emt 0:03:45]} Kb8 {[%emt 0:01:17]} 19. dxc5 {[%emt 0:15:51] White is better.} Bxc5 {[%emt 0:16:47]} 20. Nd3 {[%emt 0:07:04] [#]} Qc6 $146 {[%emt 0:00:39]} ({Predecessor:} 20... Qe7 21. b3 Bd6 22. Ne4 Nxe4 23. Qxe4 Bc7 24. Bc3 Rhg8 25. f4 Ka8 26. g4 Qd7 27. Kc2 f5 {1-0 (40) Barthel,A (2230)-Hirschinger,T (2080) Mehlingen 1997}) 21. b3 {[%emt 0:01:19]} Bd6 {[%emt 0:01:54]} 22. Ne5 {[%emt 0:10:18]} Bxe5 {[%emt 0:01:34]} 23. Qxe5+ {[%emt 0:00:09]} Ka8 {[%emt 0:00:02]} 24. f3 {[%emt 0:00:57]} Rd7 {[%emt 0:03:08]} (24... Nbd7 $14 25. Qc7 Qxc7 26. Bxc7 Rc8) 25. Ne2 {[%emt 0:02:45]} Rhd8 {[%emt 0:07:22]} 26. Nd4 {[%emt 0:00:58]} ({White should try} 26. Rd4 $16) 26... Qc8 {[%emt 0:00:16]} (26... Qd6 $11 27. Qxd6 Rxd6) 27. Rd2 $16 {[%emt 0:03:09]} Qb8 {[%emt 0:00:37]} 28. Qxb8+ {[%emt 0:02:17]} Kxb8 {[%emt 0:00:03]} 29. Rhd1 {[%emt 0:00:34] And now c5 would win.} e5 {[%emt 0:06:13][%cal Rd7d4]} 30. Nf5 {[%emt 0:01:01] Black must now prevent Nd6.} Nxh5 {[%emt 0:02:54]} 31. Nd6 {[%emt 0:01:33]} (31. Rxd7 $16 Rxd7 32. Rh1) 31... Rg8 $11 {[%emt 0:00:09]} 32. c5 {[%emt 0:12:42][%mdl 1024] White has compensation.} Nc8 {[%emt 0:02:40]} 33. Nc4 {[%emt 0:02:01]} Re7 {[%emt 0:00:19] [#]} (33... Rxd2 $11 {remains equal.} 34. Rxd2 (34. Bxd2 f6 $11) 34... f6) 34. Rd7 {[%emt 0:05:19]} ({Better is} 34. Rd8 $1 $16 {[%cal Rd8g8]} Ree8 {[#]} 35. Nxe5 $1 {[%mdl 512]}) 34... Nf6 {[%emt 0:02:13]} (34... Rxd7 $14 35. Rxd7 f6) 35. Bc7+ $1 $16 {[%emt 0:01:47]} Ka8 {[%emt 0:00:02]} 36. Rxe7 {[%emt 0:00:23] White is much more active.} Nxe7 {[%emt 0:00:19]} 37. Bxe5 {[%emt 0:00:10]} Nfd5 {[%emt 0:00:49]} 38. Kb2 {[%emt 0:00:12]} b6 {[%emt 0:08:27]} 39. c6 {[%emt 0:03:39]} (39. cxb6 $142 Nxb6 40. Nxb6+ axb6 41. Rd7) 39... Rc8 {[%emt 0:08:24]} 40. c7 {[%emt 0:11:55]} Nxc7 $2 {[%emt 0:00:04][%mdl 8192]} (40... b5 $16) 41. Rd7 $18 {[%emt 0:31:14]} Ned5 {[%emt 0:30:04]} 42. Bxc7 {[%emt 0:02:45] Weighted Error Value: White=0.17 (very precise) /Black=0.41} ({Not} 42. Rxf7 Ne6 $16) ({Less strong is} 42. Bxg7 Rg8 $14) 1-0

[Event "21st Maccabiah GM 2022"]
[Site "?"]
[Date "2022.07.22"]
[Round "9.5"]
[White "Postny, Evgeny"]
[Black "Ginsburg, Gennadi"]
[Result "1-0"]
[ECO "E06"]
[WhiteElo "2564"]
[BlackElo "2400"]
[Annotator "TA"]
[PlyCount "79"]
[EventDate "2022.07.13"]
[EventType "tourn"]
[EventCountry "ISR"]
[SourceTitle "playchess.com"]
[Source "ChessBase"]
[SourceQuality "1"]
[TimeControl "40/5400+30:1800+30"]

{[%evp 14,79,27,18,68,33,39,41,86,64,87,76,67,67,98,99,100,78,72,66,70,70,82,75,104,105,105,119,110,82,75,59,58,58,63,76,65,56,81,69,94,89,198,209,199,208,189,187,352,355,383,380,370,369,385,311,327,262,285,202,194,201,476,413,430,442,729,660]} 1. Nf3 {[%emt 0:00:10]} d5 {[%emt 0:02:58]} 2. c4 {[%emt 0:00:30]} e6 {[%emt 0:00:30]} 3. g3 {[%emt 0:00:30]} c5 {[%emt 0:00:30]} 4. Bg2 {[%emt 0:00:30]} Nc6 {[%emt 0:00:30]} 5. O-O {[%emt 0:00:30]} Nf6 {[%emt 0:00:30]} 6. d4 {[%emt 0:00:30]} Be7 {[%emt 0:00:30]} 7. dxc5 {[%emt 0:00:30]} Bxc5 {[%emt 0:00:30]} 8. a3 {[%emt 0:00:30]} Ne4 {[%emt 0:00:30] E06: Closed Catalan: Early deviations.} (8... dxc4 $11 9. Qxd8+ Nxd8) 9. Qc2 {[%emt 0:00:30]} O-O {[%emt 0:00:30] [#]} 10. e3 $146 {[%emt 0:00:30]} (10. b4 {is interesting.} Qf6 11. Ra2 Bb6 12. e3) ({Predecessor:} 10. b4 Qf6 11. Bb2 Bd4 12. Nxd4 Nxd4 13. Bxd4 Qxd4 14. Ra2 f5 15. cxd5 exd5 16. e3 Qb6 17. Qd3 Be6 18. Rc2 {½-½ (18) Lima,D-Wojtkiewicz,A Hastings 1988}) 10... Qe7 {[%emt 0:00:30] White is slightly better.} 11. b4 {[%emt 0:00:30]} Bb6 {[%emt 0:00:30]} 12. Bb2 {[%emt 0:00:30]} Rd8 {[%emt 0:00:30]} 13. Rd1 {[%emt 0:00:30]} h6 {[%emt 0:00:30]} 14. Nc3 {[%emt 0:00:30][%cal Rc4d5]} Nf6 {[%emt 0:00:30]} 15. cxd5 {[%emt 0:00:30]} exd5 {[%emt 0:00:30]} 16. Na4 {[%emt 0:00:30]} Bg4 {[%emt 0:00:30]} 17. Nxb6 {[%emt 0:00:30]} axb6 {[%emt 0:00:30]} 18. h3 {[%emt 0:00:30]} Bxf3 {[%emt 0:00:30]} 19. Bxf3 {[%emt 0:00:30]} Qe6 {[%emt 0:00:30]} 20. Bg2 {[%emt 0:00:30]} Ne4 {[%emt 0:00:30]} 21. Qe2 {[%emt 0:00:30]} Ne5 {[%emt 0:00:30]} 22. Bd4 {[%emt 0:00:30]} Nc4 {[%emt 0:00:30]} 23. a4 {[%emt 0:00:30]} Rd6 {[%emt 0:00:30]} 24. Qg4 {[%emt 0:00:30]} Qxg4 {[%emt 0:00:30]} 25. hxg4 {[%emt 0:00:30]} Re8 {[%emt 0:00:30]} 26. Ra2 {[%emt 0:00:30][%cal Ba1a2,Ba2c2,Bc2c7][%mdl 32]} Ne5 {[%emt 0:00:30]} 27. b5 {[%emt 0:00:30]} Nf6 {[%emt 0:00:30]} (27... Nxg4 $16 {might work better.} 28. Rc2 (28. f3 Nxe3 29. Bxe3 Nc3 $11) 28... Ng5) 28. Rc2 $18 {[%emt 0:00:30]} Ned7 {[%emt 0:00:30]} 29. Rc7 {[%emt 0:00:30]} Ra8 {[%emt 0:00:30]} 30. Ra1 {[%emt 0:00:30]} Nxg4 $2 {[%emt 0:00:30] [#]} (30... Rb8 31. a5 Ne8) 31. Rxb7 {[%emt 0:00:30]} Nge5 {[%emt 0:00:30]} 32. Rc7 {[%emt 0:00:30] Against Rc8} Kf8 {[%emt 0:00:30]} 33. Bc3 {[%emt 0:00:30] This bishop pair is nice.} Nd3 {[%emt 0:00:30] Against Bb4} 34. Rc6 {[%emt 0:00:30]} Ke7 {[%emt 0:00:30]} 35. Bxg7 {[%emt 0:00:30]} N7c5 {[%emt 0:00:30]} 36. Bxh6 {[%emt 0:00:30]} Rxc6 {[%emt 0:00:30]} 37. bxc6 {[%emt 0:00:30]} Rxa4 $2 {[%emt 0:00:30]} (37... Kd6 {is a better defense.} 38. c7 f6) 38. Rxa4 {[%emt 0:00:30]} Nxa4 {[%emt 0:00:30]} 39. Bxd5 {[%emt 0:00:30] [#] Hoping for c7.} Ne5 {[%emt 0:00:30]} (39... b5 $142 40. c7 Nb6) 40. Bg7 {[%emt 0:00:30] Weighted Error Value: White=0.11 (very precise) /Black=0.28 (precise)} 1-0